fUST/lending_fUST_20251220
["ID","MTS","AMOUNT","RATE_DAILY","PERIOD"]
[399228990,1766189440469,-912.83,0.00015999,2]
[399228991,1766189440480,-604.19,0.00015999,2]
[399228994,1766189440491,-7714.22581714,0.00016,5]
[399228996,1766189440503,-281.99094313,0.00016012,2]
[399228997,1766189440512,-4565.75842654,0.00016034,2]
[399228999,1766189440521,-190.13728843,0.00016041,7]
[399229001,1766189440532,-500.0,0.00016099,2]
[399229003,1766189440544,-4565.75842654,0.00016104,2]
[399229005,1766189440555,-260.0,0.00016134,2]
[399229007,1766189440565,-500.0,0.00016164,2]
[399229009,1766189440574,-912.83,0.00016168,2]
[399229011,1766189440584,-604.19,0.00016168,2]
[399229012,1766189440594,-4565.75842654,0.00016174,2]
[399229014,1766189440604,-4565.75842654,0.00016244,2]
[399229016,1766189440616,-242.38816161,0.00016269,4]
[399229018,1766189440626,-4565.75842654,0.00016314,2]
[399229020,1766189440637,-500.0,0.00016382,2]
[399229022,1766189440647,-4570.32418497,0.00016384,2]
[399229024,1766189440656,-912.83,0.00016396,2]
[399229026,1766189440667,-604.19,0.00016396,2]
[399229028,1766189440678,-151.0,0.00016438,2]
[399229030,1766189440687,-151.0,0.00016438,2]
[399229032,1766189440697,-151.0,0.00016438,2]
[399229042,1766189440792,-151.0,0.00016438,2]
[399229044,1766189440802,-151.0,0.00016438,2]
[399229047,1766189440811,-151.0,0.00016438,2]
[399229050,1766189440821,-151.0,0.00016438,2]
[399229052,1766189440830,-151.0,0.00016438,2]
[399229054,1766189440839,-151.0,0.00016438,2]
[399229056,1766189440849,-500.0,0.00016438,2]
[399229058,1766189440858,-200.0,0.00016438,3]
[399229060,1766189440867,-200.0,0.00016438,3]
[399229062,1766189440877,-200.0,0.00016438,3]
[399229064,1766189440887,-200.0,0.00016438,3]
[399229066,1766189440896,-200.0,0.00016438,3]
[399229068,1766189440906,-200.0,0.00016438,3]
[399229070,1766189440915,-259.32542659,0.00016438,2]
[399229072,1766189440925,-587.0,0.00016451,2]
[399229074,1766189440934,-688.49839244,0.00016468,2]
[399229076,1766189440943,-219.62080241,0.0001654,2]
[399229078,1766189440952,-500.0,0.00016551,2]
[399229080,1766189440961,-912.83,0.00016554,2]
[399229082,1766189440971,-604.19,0.00016554,2]
[399229084,1766189440980,-2351.0,0.00016574,2]
[399229085,1766189440989,-360.0,0.00016682,2]
[399229087,1766189440999,-500.0,0.00016712,2]
[399229089,1766189441008,-864.0,0.00016906,2]
[399229091,1766189441017,-500.0,0.00016986,2]
[399229093,1766189441027,-713.97283296,0.00017016,2]
[399229095,1766189441036,-323.0,0.00017171,2]
[399229097,1766189441046,-460.0,0.0001723,2]
[399229099,1766189441055,-242.38816161,0.00017237,6]
[399229101,1766189441064,-500.0,0.0001726,2]
[399229103,1766189441073,-390.0,0.00017376,2]
[399229105,1766189441082,-500.0,0.00017534,2]
[399229106,1766189441091,-740.38982778,0.00017564,2]
[399229108,1766189441100,-325.0,0.00017582,2]
[399229110,1766189441109,-500.0,0.00017599,2]
[399229112,1766189441119,-1000.0,0.000176,2]
[399229114,1766189441129,-378.26457188,0.00017699,2]
[399229116,1766189441138,-560.0,0.00017777,2]
[399229118,1766189441147,-912.83,0.00017798,2]
[399229120,1766189441156,-604.19,0.00017798,2]
[399229122,1766189441165,-500.0,0.00017799,2]
[399229124,1766189441174,-500.0,0.00017799,2]
[399229126,1766189441183,-500.0,0.00017799,2]
[399229128,1766189441192,-500.0,0.00017799,2]
[399229130,1766189441201,-497.56,0.00017799,2]
[399229132,1766189441211,-912.83,0.00017799,2]
[399229134,1766189441220,-912.83,0.00017799,2]
[399229136,1766189441229,-912.83,0.00017799,2]
[399229138,1766189441238,-912.83,0.00017799,2]
[399229140,1766189441247,-912.83,0.00017799,2]
[399229142,1766189441256,-912.83,0.00017799,2]
[399229144,1766189441265,-912.83,0.00017799,2]
[399229146,1766189441273,-912.96,0.00017799,2]
[399229148,1766189441283,-604.19,0.00017799,2]
[399229150,1766189441292,-604.19,0.00017799,2]
[399229152,1766189441301,-604.19,0.00017799,2]
[399229154,1766189441310,-604.19,0.00017799,2]
[399229156,1766189441319,-604.19,0.00017799,2]
[399229158,1766189441329,-604.19,0.00017799,2]
[399229160,1766189441338,-604.19,0.00017799,2]
[399229162,1766189441347,-604.34538339,0.00017799,2]
[399229164,1766189441356,-240108.04709082,0.000178,3]
[399229166,1766189441365,-500.0,0.00017808,2]
[399229167,1766189441374,-4984.778703,0.0001799,2]
[399229169,1766189441383,-117870.47305732,0.00018,5]
[399229171,1766189441391,-823.0,0.00018028,2]
[399229173,1766189441401,-500.0,0.00018082,2]
[399229175,1766189441410,-250.0,0.000181,2]
[399229177,1766189441419,-767.7842514,0.00018112,2]
[399229179,1766189441427,-219.62080241,0.00018202,2]
[399229181,1766189441436,-242.38816161,0.00018206,8]
[399229183,1766189441445,-1594.0,0.00018232,2]
[399229185,1766189441454,-660.0,0.00018325,2]
[399229187,1766189441463,-208.21350612,0.00018356,2]
[399229189,1766189441472,-1000.0,0.00018596,2]
[399229191,1766189441481,-2158.0,0.00018624,2]
[399229193,1766189441490,-632.0,0.00018624,2]
[399229195,1766189441499,-1361.0,0.00018624,2]
[399229197,1766189441509,-944.98185612,0.0001866,2]
[399229199,1766189441518,-404.98167516,0.00018836,2]
[399229201,1766189441527,-426.68714122,0.00018836,2]
[399229203,1766189441537,-202.50358379,0.00018836,2]
[399229205,1766189441546,-760.0,0.00018873,2]
[399229207,1766189441556,-302.66710237,0.000189,2]
[399229209,1766189441565,-150.0,0.00018947,2]
[399229211,1766189441574,-4000.0,0.00019,2]
[399229213,1766189441583,-16275.08464158,0.00019,2]
[399229215,1766189441591,-242.38816161,0.00019174,10]
[399229217,1766189441600,-151.0,0.00019178,2]
[399229219,1766189441609,-151.0,0.00019178,2]
[399229221,1766189441617,-151.0,0.00019178,2]
[399229223,1766189441626,-151.0,0.00019178,2]
[399229225,1766189441635,-150.0,0.00019178,2]
[399229227,1766189441644,-689.26,0.000192,2]
[399229228,1766189441653,-4398.74,0.000192,2]
[399229230,1766189441662,-300.0,0.00019315,2]
[399229233,1766189441672,-860.0,0.00019421,2]
[399229235,1766189441681,-450.0,0.00019452,2]
[399229236,1766189441691,-600.0,0.00019589,2]
[399229238,1766189441700,-185.770647,0.00019635,2]
[399229240,1766189441709,-201.72588674,0.00019691,2]
[399229242,1766189441722,-428.32900051,0.00019699,2]
[399229244,1766189441731,-1555.86071232,0.00019714,2]
[399229246,1766189441740,-590.97502124,0.00019714,2]
[399229248,1766189441749,-186.98252681,0.00019714,2]
[399229250,1766189441758,-703.97165611,0.00019726,2]
[399229252,1766189441767,-1152.0,0.00019757,2]
[399229254,1766189441776,-219.62080241,0.00019863,2]
[399229256,1766189441785,-960.0,0.00019969,2]
[399229258,1766189441795,-1760.84689319,0.0002,2]
[399229260,1766189441805,-547.05471109,0.0002,2]
[399229262,1766189441814,-1908.0,0.0002,2]
[399229264,1766189441823,-1787.0,0.0002,2]
[399229266,1766189441832,-3081.05965419,0.0002,2]
[399229268,1766189441842,-202.14053039,0.0002,2]
[399229270,1766189441851,-502.94744872,0.0002,2]
[399229272,1766189441860,-1026.45012893,0.0002,5]
[399229274,1766189441871,-5009.12058852,0.0002,7]
[399229276,1766189441880,-579.2,0.0002,28]
[399229278,1766189441888,-250.0,0.0002,10]
[399229280,1766189441897,-150.0,0.0002,2]
[399229282,1766189441906,-2000.0,0.0002,7]
[399229284,1766189441915,-250.0,0.000201,10]
[399229286,1766189441924,-339.44441292,0.0002013,2]
[399229287,1766189441933,-242.38816161,0.00020143,12]
[399229289,1766189441942,-200.14,0.00020169,7]
[399229291,1766189441952,-1032.812036,0.00020187,2]
[399229293,1766189441961,-250.0,0.000202,10]
[399229295,1766189441971,-250.0,0.000203,10]
[399229297,1766189441980,-250.0,0.000204,10]
[399229299,1766189441989,-1000.0,0.00020456,2]
[399229301,1766189441999,-244.0,0.00020456,2]
[399229303,1766189442009,-250.0,0.000205,10]
[399229305,1766189442020,-1060.0,0.00020517,2]
[399229307,1766189442030,-319.412094,0.000206,10]
[399229309,1766189442039,-271.39329184,0.0002061,2]
[399229311,1766189442048,-1555.86071232,0.00020736,2]
[399229313,1766189442057,-201.036551,0.00020913,2]
[399229315,1766189442067,-8717.98125844,0.00021,2]
[399229318,1766189442080,-50000.0,0.00021,2]
[399229319,1766189442089,-1379.54155,0.00021,2]
[399229321,1766189442099,-150.0,0.00021,2]
[399229323,1766189442107,-1160.0,0.00021065,2]
[399229325,1766189442116,-242.38816161,0.00021111,14]
[399229327,1766189442126,-12583.96421176,0.000215,7]
[399229329,1766189442135,-219.62080241,0.00021524,2]
[399229331,1766189442145,-1260.0,0.00021613,2]
[399229333,1766189442154,-2158.0,0.00021624,2]
[399229335,1766189442163,-632.0,0.00021624,2]
[399229337,1766189442172,-1361.0,0.00021624,2]
[399229339,1766189442182,-478.39342914,0.00021699,2]
[399229341,1766189442191,-150.0,0.00021918,2]
[399229343,1766189442200,-161.69,0.00022,7]
[399229345,1766189442209,-419.74568313,0.00022,2]
[399229347,1766189442219,-27218.40080989,0.00022,20]
[399229349,1766189442228,-160390.31,0.00022,2]
[399229351,1766189442238,-240.80918245,0.0002208,16]
[399229353,1766189442247,-242.38816161,0.0002208,16]
[399229355,1766189442256,-1360.0,0.00022161,2]
[399229357,1766189442266,-253.42939523,0.00022329,7]
[399229359,1766189442276,-4398.74,0.000224,2]
[399229361,1766189442285,-300.0,0.00022466,2]
[399229363,1766189442294,-1030.20553596,0.000225,2]
[399229365,1766189442304,-1000.0,0.00022501,10]
[399229367,1766189442313,-492.0,0.00022501,10]
[399229369,1766189442322,-689.26,0.000227,14]
[399229371,1766189442332,-1460.0,0.00022709,2]
[399229373,1766189442341,-250.0,0.0002277,2]
[399229375,1766189442350,-450.0,0.00023014,2]
[399229377,1766189442360,-242.38816161,0.00023049,18]
[399229379,1766189442368,-510.97,0.000231,2]
[399229381,1766189442380,-1560.0,0.00023257,2]
[399229390,1766189442453,-2633.42723105,0.00023384,2]
[399229392,1766189442462,-199.0,0.00023425,10]
[399229393,1766189442471,-600.0,0.00023562,2]
[399229395,1766189442481,-528.45785777,0.00023699,2]
[399229397,1766189442490,-404.98167516,0.00023775,2]
[399229399,1766189442499,-426.68714122,0.00023775,2]
[399229401,1766189442507,-748.20811137,0.00023799,2]
[399229404,1766189442521,-807.65260095,0.00023799,2]
[399229406,1766189442531,-1660.0,0.00023805,2]
[399229408,1766189442540,-500.0,0.00024,2]
[399229410,1766189442549,-1731.85339794,0.00024,2]
[399229412,1766189442558,-464.67451913,0.00024,2]
[399229414,1766189442567,-1041.66666667,0.00024,7]
[399229416,1766189442577,-183.0,0.00024,7]
[399229418,1766189442586,-242.38816161,0.00024017,20]
[399229420,1766189442595,-750.0,0.0002411,2]
[399229422,1766189442604,-12200.41867342,0.00024142,2]
[399229850,1766189542450,-206.84041916,0.00013699,2]
[399229852,1766189642352,300.0,0.00013698,2]
[399229853,1766189651462,3909.29567055,0.00013699,2]
[399229854,1766189651508,572.50372662,0.00013699,2]
[399229865,1766189768205,500.0,0.00013273,2]
[399229893,1766189886258,349.77621155,0.00013273,2]
[399229894,1766189898460,4673.97,0.00013124,2]
[399229895,1766189922251,3903.76006183,0.00013699,2]
[399229896,1766189922294,1096.23993817,0.00013699,2]
[399229897,1766189946430,4851.6535148,0.00013699,2]
[399229898,1766189946502,500.0,0.00013273,2]
[399229900,1766189964493,500.0,0.00013273,2]
[399229901,1766189996883,150.0,8.163e-05,2]
[399229902,1766189997295,150.0,8.552e-05,2]
[399229903,1766189997698,150.0,8.94e-05,2]
[399229904,1766189998104,155.67,9.329e-05,2]
[399229905,1766189998501,194.58,9.718e-05,2]
[399229906,1766189998918,233.5,0.00010106,2]
[399229907,1766189999769,272.42,0.00010495,2]
[399229908,1766190000174,311.33,0.00010884,2]
[399229909,1766190001028,350.25,0.00011273,2]
[399229910,1766190001468,389.17,0.00011661,2]
[399229911,1766190008869,500.34427697,0.00013273,2]
[399229912,1766190011532,194.85227006,0.00013273,2]
[399229913,1766190011580,305.14772994,0.00013273,2]
[399229914,1766190011636,500.42564553,0.00013273,2]
[399229926,1766190068524,150.0,0.00011522,2]
[399229927,1766190068916,150.0,0.0001207,2]
[399229928,1766190069319,150.0,0.00012619,2]
[399229929,1766190069717,150.0,0.00013167,2]
[399229930,1766190073082,300.0,0.00013673,2]
[399229931,1766190076951,500.59035095,0.00013273,2]
[399229932,1766190088592,500.0,0.00013273,2]
[399229964,1766190127284,500.65649316,0.00013273,2]
[399229965,1766190128444,500.1181424,0.00013273,2]
[399229966,1766190130059,214.9592,8e-05,2]
[399229967,1766190133315,150.0,9.594e-05,2]
[399229968,1766190133731,150.0,0.0001005,2]
[399229969,1766190134316,150.0,0.00010507,2]
[399229970,1766190134727,150.0,0.00010964,2]
[399229971,1766190135152,150.0,0.00011421,2]
[399229972,1766190135601,150.0,0.00011878,2]
[399229973,1766190136487,150.06,0.00012335,2]
[399229974,1766190136911,171.49,0.00012791,2]
[399229975,1766190137327,192.93,0.00013248,2]
[399229977,1766190186044,500.0,0.00013273,2]
[399229978,1766190201883,150.0,9.613e-05,2]
[399229979,1766190202287,150.0,0.00010071,2]
[399229984,1766190308199,500.0,0.00013273,2]
[399229985,1766190311882,500.0,0.00013273,2]
[399229986,1766190315104,159.02212428,0.00013273,2]
[399229987,1766190315183,500.64754743,0.00013273,2]
[399229988,1766190327391,500.0,0.00013273,2]
[399229989,1766190329604,500.39595032,0.00013273,2]
[399229990,1766190331126,150.0,8.112e-05,2]
[399229991,1766190331548,150.0,8.498e-05,2]
[399229992,1766190331971,150.26,8.884e-05,2]
[399229993,1766190332368,200.34,9.271e-05,2]
[399229994,1766190332771,250.43,9.657e-05,2]
[399229995,1766190333285,300.51,0.00010043,2]
[399229996,1766190333604,2.02681599,0.00010429,2]
[399229997,1766190333663,348.57318401,0.00010429,2]
[399229998,1766190333720,500.44330128,0.00013273,2]
[399229999,1766190334009,400.68,0.00010816,2]
[399230000,1766190334428,450.77,0.00011202,2]
[399230001,1766190334830,500.86,0.00011588,2]
[399230002,1766190367591,264.55319641,0.00013273,2]
[399230003,1766190379107,500.29192579,0.00013273,2]
[399230005,1766190403719,150.0,9.655e-05,2]
[399230006,1766190404161,150.0,0.00010115,2]
[399230007,1766190404631,150.0,0.00010574,2]
[399230008,1766190405018,150.0,0.00011034,2]
[399230009,1766190405411,150.0,0.00011494,2]
[399230010,1766190405816,150.0,0.00011954,2]
[399230013,1766190427610,500.37072158,0.00013273,2]
[399230014,1766190428004,500.0,0.00013273,2]
[399230015,1766190431422,204.69262779,0.00013273,2]
[399230017,1766190433286,325.81555858,0.00013273,2]
[399230019,1766190435017,185.09255402,0.00013273,2]
[399230020,1766190435071,500.0,0.00013273,2]
[399230021,1766190438219,3917.86693054,0.00013,2]
[399230022,1766190438267,10000.01,0.00013,2]
[399230023,1766190438316,6082.12306946,0.00013,2]
[399230026,1766190440534,500.94757836,0.00013273,2]
[399230027,1766190443723,231.96469526,0.00013273,2]
[399230028,1766190444839,500.36356836,0.00013273,2]
[399230030,1766190446096,500.0,0.00013273,2]
[399230031,1766190447093,500.0,0.00013273,2]
[399230035,1766190448900,527.54777077,0.00013273,2]
[399230036,1766190451061,500.49947784,0.00013273,2]
[399230037,1766190451111,500.43188937,0.00013273,2]
[399230038,1766190452215,156.13195058,0.00013273,2]
[399230039,1766190452350,344.8284771,0.00013273,2]
[399230040,1766190470457,150.0,9.626e-05,2]
[399230041,1766190470861,150.0,0.00010085,2]
[399230042,1766190471264,150.0,0.00010543,2]
[399230043,1766190471673,168.69,0.00011001,2]
[399230044,1766190472218,210.86,0.0001146,2]
[399230045,1766190472647,253.03,0.00011918,2]
[399230046,1766190473051,295.2,0.00012377,2]
[399230047,1766190473475,337.37,0.00012835,2]
[399230048,1766190473882,379.55,0.00013293,2]
[399230050,1766190484087,423.66881091,0.00010618,2]
[399230052,1766190514356,7136.81271199,0.0001,2]
[399230053,1766190514408,7902.57265611,0.0001,2]
[399230054,1766190514953,2097.43734389,0.0001,2]
[399230055,1766190515006,816.44244613,0.0001,2]
[399230056,1766190518999,245.0,0.00012,10]
[399230057,1766190527260,4555.69377612,0.00013699,2]
[399230058,1766190533776,-229.74010027,0.00013699,2]
[399230059,1766190533831,-753.02435,0.00013699,2]
[399230060,1766190534015,-2979.05132348,0.00013699,2]
[399230061,1766190534070,-500.0,0.00013699,2]
[399230062,1766190534124,-293.15958084,0.00013699,2]
[399230063,1766190534388,-500.0,0.00013699,2]
[399230064,1766190534443,-500.0,0.00013699,2]
[399230065,1766190534495,-500.0,0.00013699,2]
[399230066,1766190534552,-500.0,0.00013699,2]
[399230067,1766190534601,-500.0,0.00013699,2]
[399230068,1766190534652,-500.0,0.00013699,2]
[399230069,1766190534705,-500.0,0.00013699,2]
[399230070,1766190534757,-500.0,0.00013699,2]
[399230071,1766190534807,-512.74982559,0.00013699,2]
[399230072,1766190534874,-206.84041916,0.00013699,2]
[399230073,1766190534929,-60.8295105,0.00013699,2]
[399230074,1766190535163,-439.1704895,0.00013699,2]
[399230075,1766190535218,-257.04550563,0.00013699,2]
[399230076,1766190535273,-500.0,0.00013699,2]
[399230077,1766190535335,-500.0,0.00013699,2]
[399230078,1766190535387,-500.0,0.00013699,2]
[399230079,1766190535441,-500.0,0.00013699,2]
[399230080,1766190535494,-500.0,0.00013699,2]
[399230081,1766190535555,-615.0,0.00013699,2]
[399230082,1766190543914,150.0,8.351e-05,2]
[399230083,1766190544325,150.0,8.749e-05,2]
[399230084,1766190544749,150.0,9.146e-05,2]
[399230085,1766190545345,192.42,0.0001,2]
[399230086,1766190546113,150.0,9.544e-05,2]
[399230087,1766190546523,150.0,9.942e-05,2]
[399230088,1766190546922,150.0,0.00010339,2]
[399230089,1766190547719,162.04,0.00010737,2]
[399230090,1766190547773,192.42,0.000102,2]
[399230091,1766190548132,185.19,0.00011135,2]
[399230092,1766190548543,208.33,0.00011532,2]
[399230093,1766190548603,500.0,0.00013699,2]
[399230094,1766190548974,37.17800974,0.0001193,2]
[399230095,1766190549032,194.30199026,0.0001193,2]
[399230096,1766190549701,251.66101855,0.00013273,2]
[399230097,1766190550090,192.42,0.000104,2]
[399230098,1766190550446,291.1716005,0.00013273,2]
[399230099,1766190551197,500.0,0.00013699,2]
[399230100,1766190551289,500.0,0.00013699,2]
[399230101,1766190551591,500.0,0.00013273,2]
[399230102,1766190553122,500.0,0.00013273,2]
[399230103,1766190554342,500.0,0.00013273,2]
[399230104,1766190554537,500.0,0.00013273,2]
[399230105,1766190554725,500.0,0.00013273,2]
[399230106,1766190554866,500.0,0.00013699,2]
[399230107,1766190555262,500.0,0.00013699,2]
[399230108,1766190555353,500.0,0.00013273,2]
[399230109,1766190555408,500.0,0.00013699,2]
[399230110,1766190555534,501.39178137,0.00013699,2]
[399230111,1766190556252,500.67256365,0.00013699,2]
[399230112,1766190557193,500.0,0.00013699,2]
[399230113,1766190557590,500.0,0.00013273,2]
[399230114,1766190557786,500.14674829,0.00013699,2]
[399230115,1766190558320,500.0,0.00013273,2]
[399230116,1766190558563,500.0,0.00013699,2]
[399230117,1766190559569,68.24429738,0.00013699,2]
[399230118,1766190560213,500.0,0.00013273,2]
[399230119,1766190561448,300.0,0.00013673,2]
[399230120,1766190564391,500.0,0.00013273,2]
[399230121,1766190565849,500.0,0.00013273,2]
[399230122,1766190566652,500.0,0.00013273,2]
[399230123,1766190571907,500.0,0.00013273,2]
[399230125,1766190604007,500.0,0.00013273,2]
[399230126,1766190607443,501.10680594,0.00013273,2]
[399230127,1766190609975,207.4729,8e-05,2]
[399230128,1766190610763,268.2036171,0.00013273,2]
[399230129,1766190610935,500.0,0.00013273,2]
[399230130,1766190611221,500.0,0.00013273,2]
[399230131,1766190612236,500.0,0.00013273,2]
[399230132,1766190612308,500.0,0.00013273,2]
[399230133,1766190613008,150.0,8.153e-05,2]
[399230134,1766190613536,150.0,8.541e-05,2]
[399230135,1766190613942,169.53,8.929e-05,2]
[399230136,1766190613996,500.0,0.00013273,2]
[399230137,1766190614453,226.03,9.318e-05,2]
[399230138,1766190614783,282.54,9.706e-05,2]
[399230139,1766190615252,339.05,0.00010094,2]
[399230140,1766190615636,395.56,0.00010482,2]
[399230141,1766190616062,452.07,0.00010871,2]
[399230142,1766190616469,508.58,0.00011259,2]
[399230143,1766190616903,565.08,0.00011647,2]
[399230159,1766190631610,-431.75570262,0.00013699,2]
[399230160,1766190631619,-260.17622906,0.00013699,2]
[399230161,1766190631631,-240.52018291,0.00013699,2]
[399230162,1766190631640,-500.0,0.00013699,2]
[399230164,1766190631649,-503.11160904,0.00013699,2]
[399230166,1766190631658,-500.0,0.00013699,2]
[399230167,1766190631667,-501.10092084,0.00013699,2]
[399230168,1766190631676,-500.0,0.00013699,2]
[399230169,1766190631686,-500.0,0.00013699,2]
[399230170,1766190631695,-500.6580822,0.00013699,2]
[399230171,1766190631704,-500.0,0.00013699,2]
[399230172,1766190631714,-500.8317515,0.00013699,2]
[399230173,1766190631723,-500.0,0.00013699,2]
[399230174,1766190631732,-308.12556902,0.00013699,2]
[399230175,1766190631742,-615.0,0.00013699,2]
[399230176,1766190631751,-832.62998065,0.00013821,2]
[399230177,1766190631762,-167.37001935,0.00013821,2]
[399230178,1766190631771,-497.35510568,0.00013821,2]
[399230179,1766190631781,-1000.0,0.00013821,2]
[399230180,1766190631790,-500.0,0.00013821,2]
[399230181,1766190631800,-1000.0,0.00013821,2]
[399230182,1766190631809,-500.0,0.00013821,2]
[399230183,1766190631818,-537.62840326,0.00013821,2]
[399230184,1766190631828,-1000.0,0.00013821,2]
[399230185,1766190631837,-500.0,0.00013821,2]
[399230186,1766190631846,-1000.0,0.00013821,2]
[399230187,1766190631855,-1002.71437902,0.00013821,2]
[399230188,1766190631865,-1097.33430556,0.00013821,2]
[399230189,1766190631875,-547.41448992,0.00013821,2]
[399230190,1766190631885,-225.14529827,0.00013896,2]
[399230191,1766190631895,-300.0,0.00013972,2]
[399230192,1766190631904,-300.0,0.00013972,2]
[399230193,1766190631914,-300.0,0.00013972,2]
[399230194,1766190631923,-300.0,0.00013972,2]
[399230195,1766190631933,-300.0,0.00013972,2]
[399230196,1766190631942,-282.35732242,0.00013972,2]
[399230756,1766190639883,-17.64267758,0.00013972,2]
[399230758,1766190639893,-300.0,0.00013972,2]
[399230760,1766190639902,-300.0,0.00013972,2]
[399230762,1766190639911,-300.0,0.00013972,2]
[399230764,1766190639920,-138.11114506,0.00013972,2]
[399230767,1766190639935,-161.88885494,0.00013972,2]
[399230769,1766190639944,-300.0,0.00013972,2]
[399230771,1766190639953,-300.0,0.00013972,2]
[399230773,1766190639962,-300.0,0.00013972,2]
[399230775,1766190639971,-300.0,0.00013972,2]
[399230777,1766190639980,-138.09920506,0.00013972,2]
[399231082,1766190642864,-161.90079494,0.00013972,2]
[399231083,1766190642874,-600.0,0.00014221,2]
[399231084,1766190642883,-1000.0,0.00014247,2]
[399231085,1766190642892,-239.15282401,0.00014247,2]
[399231087,1766190642901,-323.82525516,0.00014247,2]
[399231171,1766190645921,-676.17474484,0.00014247,2]
[399231172,1766190645932,-500.0,0.00014247,2]
[399231173,1766190645941,-375.24285861,0.00014247,2]
[399231187,1766190663910,500.70455026,0.00013273,2]
[399231188,1766190663974,501.18838989,0.00013273,2]
[399231189,1766190664025,161.53594123,0.00013273,2]
[399231190,1766190665087,500.0,0.00013273,2]
[399231191,1766190669740,500.68398952,0.00013273,2]
[399231192,1766190672824,500.0,0.00013273,2]
[399231193,1766190672913,120.67380606,0.00013273,2]
[399231194,1766190673048,379.32619394,0.00013273,2]
[399231197,1766190675709,290.54215613,0.00013273,2]
[399231199,1766190678099,500.0,0.00013273,2]
[399231200,1766190682365,365.12771211,0.00013273,2]
[399231201,1766190687228,150.0,0.00011751,2]
[399231202,1766190687636,150.0,0.00012311,2]
[399231203,1766190688072,158.49,0.0001287,2]
[399231205,1766190688491,211.32,0.0001343,2]
[399231224,1766190722252,300.0,0.00013698,2]
[399231226,1766190724557,649.53416585,0.00013273,2]
[399231227,1766190725243,205.86,0.0001,2]
[399231228,1766190727589,205.86,0.000102,2]
[399231230,1766190728573,500.0,0.00013273,2]
[399231231,1766190738844,4183.38046494,0.00013699,2]
[399231232,1766190753656,500.0,0.00013698,2]
[399231233,1766190753692,500.0,0.00013698,2]
[399231234,1766190753727,500.0,0.00013698,2]
[399231235,1766190753761,250.56930703,0.00013698,2]
[399231236,1766190753789,249.43069297,0.00013698,2]
[399231237,1766190753822,500.0,0.00013698,2]
[399231238,1766190753858,500.0,0.00013698,2]
[399231239,1766190753895,500.0,0.00013698,2]
[399231240,1766190753928,465.73020379,0.00013698,2]
[399231241,1766190753963,500.0,0.00013698,2]
[399231242,1766190753996,500.0,0.00013698,2]
[399231243,1766190754029,396.97541787,0.00013698,2]
[399231244,1766190754070,500.0,0.00013698,2]
[399231245,1766190754104,500.0,0.00013698,2]
[399231246,1766190754140,500.0,0.00013698,2]
[399231247,1766190754177,500.0,0.00013698,2]
[399231248,1766190754210,500.0,0.00013698,2]
[399231249,1766190754244,500.0,0.00013698,2]